Cogmind - Beta 17 *** ADVENTURER MODE // 2026.07.15 @ 22:12:44 Player: smidge Result: Self-destructed Performance ------------- Evolutions (6) 3000 Regions Visited (12) 2400 Robots Destroyed (156) 780 Value Destroyed (6592) 6592 Prototype IDs (15) 300 Alien Tech Used (0) 0 Bonus (2491) 2491 TOTAL SCORE: 15563 Bonus ------- High Alert Combat Kills 411 Follower Combat Kills 842 Met Data Miner 300 Built Enhanced Grunts 300 A7 Reached Mainframe 300 Met R17 at Cetus 500 Friendly Fire -162 Cogmind --------- Core Integrity 962/1150 Matter 98/300 Energy 310/310 System Corruption 5% Temperature Danger (454) Movement Treading (245) Ox1 Location -4/Factory Parts ------- > --- POWER (2) -------- Reinforced Fission Core > --- PROPULSION (7) --- Improved Treads Armored Medium Treads Carbon-fiber Leg Myomer Leg > --- UTILITY (8) ------ Advanced Heat Sink High-capacity Storage Unit Enhanced Optical Array Core Analyzer Advanced Hacking Suite > --- WEAPON (2) ------- Heavy Mass Driver > --- INVENTORY (20) --- Improved Treads Improved Medium Treads Armored Medium Treads Improved Medium Armor Plating Centrium Medium Armor Plating Advanced KE Penetrator Magnetic Acceleration Cannon Magnetic Acceleration Cannon Proton Missile Launcher Proton Missile Launcher Long-range Missile Launcher Long-range Missile Launcher Improved Plasma Cutter Shock Maul Shock Maul Phasing Sabre Peak State ------------ > --- POWER ------------ Neutrino Core Quantum Reactor > --- PROPULSION ------- Improved Treads Carbon-fiber Leg Carbon-fiber Leg Flexi-carbon Leg Thunder Leg Myomer Leg Myomer Leg > --- UTILITY ---------- Advanced Heat Sink High-capacity Storage Unit Enhanced Optical Array Core Analyzer Improved Medium Armor Plating Layered Medium Armor Plating Layered Medium Armor Plating Advanced Hacking Suite > --- WEAPON ----------- Heavy Beamcaster Advanced KE Penetrator > --- INVENTORY -------- Improved Treads Improved Medium Treads Armored Medium Treads Improved Medium Armor Plating Centrium Medium Armor Plating Magnetic Acceleration Cannon Magnetic Acceleration Cannon Proton Missile Launcher Proton Missile Launcher Proton Missile Launcher Long-range Missile Launcher Long-range Missile Launcher Long-range Missile Launcher Long-range Missile Launcher Improved Plasma Cutter Shock Maul Shock Maul Phasing Sabre [Rating: 106] Favorites ----------- Power Heavy Deuterium Engine Engine Heavy Deuterium Engine Power Core Neutrino Core Reactor Light Antimatter Reactor Propulsion Light Treads Treads Light Treads Leg Flexi-carbon Leg Utility High-capacity Storage Unit Device Seismic Detector Storage High-capacity Storage Unit Processor Core Analyzer Hackware Advanced Hacking Suite Protection Medium Reflective Plating Weapon Gauss Rifle Energy Gun Shock Rifle Energy Cannon Phase Cannon Ballistic Gun Gauss Rifle Ballistic Cannon Magnetic Acceleration Cannon Launcher Proton Missile Launcher Special Weapon Improved Plasma Cutter Impact Weapon Shock Maul Slashing Weapon Katana Piercing Weapon Makeshift Spear Build | -11 -10 -9 -8 -7 -7 -7 -6 -6 -5 -5 -5 -4 ------- Run | Yrd Mat Mat Mat Fac Low Dat Pro Fac Fac Ext Cet Fac Slots Evolved 12 | . . 2 2 2 . . . 2 2 . . 2 Power 1 | . . . . . . . . . . . . 1 Propulsion 5 | . . 1 1 . . . . 1 2 . . . Utility 6 | . . 1 1 2 . . . 1 . . . 1 Weapon . | . . . . . . . . . . . . . Parts Attached 114 | 6 1 4 5 13 1 . 8 35 5 20 2 14 Power 10 | 1 . . 1 2 . . . 3 . 1 . 2 Engine 4 | 1 . . . 2 . . . 1 . . . . Core 4 | . . . 1 . . . . 1 . 1 . 1 Reactor 2 | . . . . . . . . 1 . . . 1 Propulsion 34 | 2 . 1 2 3 . . 4 6 2 9 . 5 Treads 15 | 2 . 1 1 3 . . . 1 2 4 . 1 Leg 19 | . . . 1 . . . 4 5 . 5 . 4 Wheel . | . . . . . . . . . . . . . Hover . | . . . . . . . . . . . . . Flight . | . . . . . . . . . . . . . Utility 39 | 1 1 2 1 4 1 . 1 16 1 7 1 3 Device 12 | . 1 1 . 1 . . . 3 1 4 1 . Storage 2 | 1 . 1 . . . . . . . . . . Processor 3 | . . . . . . . . 2 . . . 1 Hackware 2 | . . . . . . . . 1 . 1 . . Protection 20 | . . . 1 3 1 . 1 10 . 2 . 2 Artifact . | . . . . . . . . . . . . . Weapon 31 | 2 . 1 1 4 . . 3 10 2 3 1 4 Energy Gun 7 | 1 . 1 1 2 . . 1 . . . . 1 Energy Cannon 2 | . . . . . . . . 2 . . . . Ballistic Gun 3 | 1 . . . 1 . . . . . . . 1 Ballistic Cannon 4 | . . . . . . . . 3 . . . 1 Launcher 8 | . . . . . . . 2 2 . 2 1 1 Special Weapon 1 | . . . . . . . . . 1 . . . Impact Weapon 4 | . . . . . . . . 2 1 1 . . Slashing Weapon 1 | . . . . 1 . . . . . . . . Piercing Weapon 1 | . . . . . . . . 1 . . . . Special Melee Weapon . | . . . . . . . . . . . . . Unidentified Prototypes 3 | . . . . 1 . . . 1 . . . 1 Parts Lost 61 | . . . . 3 2 . 7 24 . 11 . 14 Power 5 | . . . . 1 . . . 2 . . . 2 Propulsion 21 | . . . . 1 . . 4 5 . 7 . 4 Utility 23 | . . . . . 1 . 1 13 . 4 . 4 Weapon 12 | . . . . 1 1 . 2 4 . . . 4 Highest Loss Streak 13 | . . . . 2 2 . 4 13 . 9 . 11 To Critical Strikes . | . . . . . . . . . . . . . Average Backups 17 | 2 4 6 15 19 19 19 17 17 18 19 19 18 Power 1 | . 1 1 1 1 2 3 3 2 2 2 1 . Propulsion 1 | . 2 2 1 1 2 2 1 1 . 1 3 3 Utility 5 | . . 1 6 9 8 8 7 5 2 3 2 2 Weapon 8 | . 1 2 5 7 6 6 5 8 13 12 11 12 Tool/Special . | . . . . . . . . . . . . . Unused Backups 19 | . . . 2 5 . . 1 . . 5 1 5 Power 6 | . . . . 2 . . 1 . . 2 1 . Propulsion 1 | . . . . 1 . . . . . . . . Utility 6 | . . . . 1 . . . . . 3 . 2 Weapon 6 | . . . 2 1 . . . . . . . 3 Tool/Special . | . . . . . . . . . . . . . Average Slot Usage (%) 95 | . 99 94 85 98 99 100 96 93 88 88 100 95 Engine 4 | . 14 11 8 4 7 7 7 2 . . . . Core 1 | . . . . 2 . . . . 5 5 5 4 Treads 16 | . 28 30 27 27 30 30 8 . 5 17 29 13 Leg 14 | . . . 2 2 . . 19 28 23 16 11 22 Device 14 | . 13 19 18 15 15 15 15 15 17 13 11 5 Storage 6 | . 14 11 9 7 7 7 7 6 5 5 5 5 Processor 2 | . . . . . . . . 3 5 5 5 9 Hackware 1 | . . . . . . . . . 5 2 5 5 Protection 15 | . . . 2 22 22 23 22 17 5 5 11 12 Energy Gun 4 | . 14 11 16 8 7 7 6 1 . . . 4 Ballistic Gun 2 | . 14 11 1 5 7 7 2 . . . . 3 Launcher 1 | . . . . . . . 4 . 3 1 10 1 Impact Weapon 2 | . . . . . . . . 3 1 8 . . Peak Build Rating 106 | 6 7 11 24 41 40 39 51 72 82 85 83 106 Average Rating 52 | 5 6 9 16 36 39 39 46 63 75 75 80 98 On Entrance 40 | . 6 7 11 24 40 39 39 51 65 82 83 81 Avg Prop Armor Cover (%) 5 | . . . 4 2 . . 3 4 16 8 4 4 Naked Turns . | . . . . . . . . . . . . . Heaviest Build 115 | 10 11 49 61 84 81 80 81 92 67 78 86 115 Greatest Support 126 | 40 40 60 60 80 80 80 80 82 62 126 126 126 Greatest Overweight (x) 2 | 1 . . 1 1 1 . 1 1 1 2 . 1 Average Overweight (x) . | . . . . . . . . . . . . . Largest Inventory Capacity 20 | 8 8 20 20 20 20 20 20 20 20 20 20 20 Average Capacity 19 | 7 8 11 20 20 20 20 20 20 20 20 20 20 Most Carried 20 | 4 4 10 20 20 20 19 20 20 20 20 20 20 Average Carried 17 | 2 4 6 15 19 19 19 17 17 18 19 19 18 Final Capacity 20 | 8 8 20 20 20 20 20 20 20 20 20 20 20 Final Carried 20 | 4 4 10 20 20 19 19 18 19 19 20 20 16 Class Distribution -------------------- 50% | Mutant 40% | Scavenger-Mutant 6% | Hacker-Mutant Dominant Class ---------------- Mutant | -10/Materials Mutant | -9/Materials Mutant | -8/Materials Mutant | -7/Factory Mutant | -7/Lower Caves Mutant | -7/Data Miner Scavenger-Mutant | -6/Proximity Caves Scavenger-Mutant | -6/Factory Hacker-Mutant | -5/Factory Scavenger-Mutant | -5/Extension Scavenger-Mutant | -5/Cetus Scavenger-Mutant | -4/Factory Resources | -11 -10 -9 -8 -7 -7 -7 -6 -6 -5 -5 -5 -4 ----------- Run | Yrd Mat Mat Mat Fac Low Dat Pro Fac Fac Ext Cet Fac Matter Collected 2661 | 212 72 37 46 373 51 . 207 830 15 622 75 121 Remotely . | . . . . . . . . . . . . . Salvage Created 7036 | . 198 74 222 1078 114 . 397 2755 15 1371 535 277 Parts 261 | . 12 5 13 54 9 . 28 79 . 23 26 12 Haulers Intercepted 3 | . . . . 1 . . . 2 . . . . Recyclers Shooed 7 | . . . . 1 . . . 4 . . . 2 Parts Field Recycled . | . . . . . . . . . . . . . Retrieved Matter . | . . . . . . . . . . . . . Parts Self-Destructed 25 | . . . . . 6 . 19 . . . . . Prevented 7 | . . . . . 3 . 4 . . . . . Parts Restored . | . . . . . . . . . . . . . Kills | -11 -10 -9 -8 -7 -7 -7 -6 -6 -5 -5 -5 -4 ------- Run | Yrd Mat Mat Mat Fac Low Dat Pro Fac Fac Ext Cet Fac Combat Hostiles Destroyed 117 | . 5 1 7 21 2 . 10 44 . 16 6 5 Melee 10 | . . . . . . . . 8 . 2 . . Guns 45 | . 5 1 6 21 2 . 6 1 . . . 3 Cannons 13 | . . . . . . . . 13 . . . . AOE 26 | . . . 1 . . . 4 14 . 3 2 2 Classes Destroyed 16 | . 3 2 . 5 . . 2 3 . . . 1 Worker 10 | . . . . 1 . . . 7 . . . 2 Builder 9 | . . . . 2 . . . 2 1 3 . 1 Hauler 3 | . . . . 1 . . . 2 . . . . Recycler 12 | . 1 . . 2 . . . 6 . 3 . . Drone 2 | . . . . . . . 2 . . . . . Watcher 4 | . . 1 . . . . . 1 . . 2 . Swarmer 26 | . 3 . 4 7 . . 3 9 . . . . Grunt 41 | . 2 . 2 9 . . 3 15 . 8 . 2 Brawler 1 | . . . . . . . . 1 . . . . Sentry 16 | . . 1 1 3 1 . . 4 . 6 . . Demolisher 1 | . . . . . . . . . . . . 1 Specialist 2 | . . . . . . . . 2 . . . . Hunter 9 | . . . . 1 . . . 6 . . . 2 Programmer 9 | . . . . 1 1 . 1 6 . . . . Heavy 1 | . . . . . . . . 1 . . . . Behemoth 3 | . . . . . . . 1 . . 2 . . Cetus Guard 6 | . . . . . . . . . . . 6 . Thug 1 | . . . . . . . . . . 1 . . Best Kill Streak 7 | . 3 1 4 7 1 . 3 5 1 5 5 5 Combat Bots Only 5 | . 3 1 4 5 1 . 3 5 . 2 4 3 Max Kills in Single Turn 5 | . 2 1 1 2 1 . 1 5 1 1 2 2 Gunslinging 1 | . 1 . . 1 . . . . . . . 1 Exploded 3 | . . . 1 . . . 1 3 . 1 2 2 Melee 1 | . . . . . . . . 1 . 1 . . Uniques/NPCs Destroyed . | . . . . . . . . . . . . . Combat | -11 -10 -9 -8 -7 -7 -7 -6 -6 -5 -5 -5 -4 -------- Run | Yrd Mat Mat Mat Fac Low Dat Pro Fac Fac Ext Cet Fac Hostile Shots Fired 1047 | . 14 8 30 206 27 . 91 404 . 130 13 124 Missed 287 | . 5 3 7 57 5 . 29 115 . 43 7 16 Hits 760 | . 9 5 23 149 22 . 62 289 . 87 6 108 Projectile 760 | . 9 5 23 149 22 . 62 289 . 87 6 108 AOE 3 | . . . . . . . . 1 . . . 2 Critical Strikes 31 | . . . . 3 . . 4 9 . 6 1 8 Actively Blocked 2 | . . . . . . . . 1 . 1 . . Part Disruptions 3 | . . . . . . . . 1 . . . 2 Damage Taken 10819 | . 67 54 231 1136 107 . 886 4027 . 1815 75 2421 Core 1214 | . 4 9 8 93 20 . 54 554 . 284 . 188 Absorbed by Shields 494 | . . . . . . . . 353 . 89 52 . Redirected to Shielding 359 | . . . . . . . . 249 . 110 . . Ignored by Resistances 3687 | . 23 15 68 488 52 . 401 1433 . 516 34 657 Core Remaining (%) 82 | 100 98 97 98 . . . 76 34 . . 71 . Volleys Fired 279 | . 14 7 16 65 4 . 29 100 . 12 5 27 Largest 2 | . 2 2 2 2 2 . 2 2 . 2 2 2 Hottest 129 | . 60 76 106 108 108 . 108 129 . 82 78 124 Shots Fired 473 | . 27 14 32 127 8 . 53 135 . 19 9 49 Gun 317 | . 27 14 32 127 8 . 46 29 . . . 34 Cannon 100 | . . . . . . . . 97 . . . 3 Launcher 56 | . . . . . . . 7 9 . 19 9 12 Special . | . . . . . . . . . . . . . Kinetic 185 | . 14 7 . 63 4 . 22 62 . . . 13 Thermal 189 | . 13 7 16 51 1 . 18 59 . . . 24 Explosive 31 | . . . . . . . 5 7 . 9 . 10 Electromagnetic 68 | . . . 16 13 3 . 8 7 . 10 9 2 Robot Hit Streak 34 | . 7 6 11 25 7 . 18 29 . 20 29 34 Robot Miss Streak 7 | . 5 2 3 6 1 . 3 7 . . . 1 Penetration Max 1 | . . . . 1 . . . . . . . 1 Secondary Targets 10 | . 1 . 1 5 . . 2 . . . . 1 Max Gunslinging Chain 1 | . 1 . 1 1 . . 1 . . . . 1 Shots Hit Robots 487 | . 16 10 23 104 8 . 42 166 1 62 9 46 Core Hits 282 | . 9 5 11 66 5 . 19 104 . 22 17 24 Critical Kills 4 | . . . . . . . 1 3 . . . . Critical Parts Destroyed 24 | . . . . . . . . 9 1 14 . . Critical Strikes 34 | . . . 1 1 . . 1 14 1 14 . 2 Burn 2 | . . . . 1 . . . . . . . 1 Destroy 1 | . . . . . . . 1 . . . . . Blast 3 | . . . . . . . . 2 . . . 1 Corrupt 1 | . . . 1 . . . . . . . . . Smash 27 | . . . . . . . . 12 1 14 . . Melee Attacks 117 | . . . . . . . . 64 8 45 . . Impact 108 | . . . . . . . . 55 8 45 . . Slashing . | . . . . . . . . . . . . . Piercing 9 | . . . . . . . . 9 . . . . Sneak Attacks 14 | . . . . . . . . 7 1 6 . . Combat Hostiles 1 | . . . . . . . . . . 1 . . Follow-up Attacks 12 | . . . . . . . . 6 . 6 . . Damage Inflicted 19560 | . 164 98 455 2528 162 . 1212 7598 130 4091 1045 2077 Guns 5460 | . 164 96 365 2500 162 . 799 600 . . . 774 Cannons 2511 | . . . . . . . . 2289 . . . 222 Explosions 6326 | . . . 89 . . . 413 1845 . 1853 1045 1081 Melee 5224 | . . . . . . . . 2857 130 2237 . . Ramming 39 | . . 2 1 28 . . . 7 . 1 . . Kinetic 3622 | . 76 43 . 1109 91 . 359 1453 . . . 491 Thermal 4848 | . 88 53 278 1276 26 . 365 1981 . . 276 505 Explosive 3402 | . . . . . . . 261 762 . 1332 . 1047 Electromagnetic 2425 | . . . 176 115 45 . 227 538 . 521 769 34 Impact 5026 | . . . . . . . . 2659 130 2237 . . Slashing . | . . . . . . . . . . . . . Piercing 198 | . . . . . . . . 198 . . . . Highest Corruption 10 | . . . . . . . 1 10 . . . 5 Average Corruption 4 | . . . . . . . 1 5 . . . 3 Corruption Purged . | . . . . . . . . . . . . . Corruption Blocked . | . . . . . . . . . . . . . Effects 64 | . . . . . . . 7 56 . . . 1 Message Errors 12 | . . . . . . . . 12 . . . . Matter Fused 17 | . . . . . . . 2 15 . . . . Heat Flow Errors 12 | . . . . . . . 2 9 . . . 1 Energy Discharges 8 | . . . . . . . . 8 . . . . Parts Rejected 1 | . . . . . . . . 1 . . . . Data Loss (minor) 7 | . . . . . . . 1 6 . . . . Data Loss (major) 3 | . . . . . . . 1 2 . . . . Misfires 3 | . . . . . . . 1 2 . . . . Weapon Failures 1 | . . . . . . . . 1 . . . . Overload Shots . | . . . . . . . . . . . . . Overflow Damage 2389 | . . . 2 . . . . 1084 130 1169 . 4 Projectiles 80 | . . . . . . . . 80 . . . . Explosions 285 | . . . 2 . . . . 110 . 169 . 4 Melee 2024 | . . . . . . . . 894 130 1000 . . Knockbacks 42 | . . . . . . . . 30 . 12 . . Impact 23 | . . . . . . . . 12 . 11 . . Kinetic 16 | . . . . . . . . 16 . . . . Secondary 3 | . . . . . . . . 2 . 1 . . Self-Inflicted Damage 339 | . . . 20 . . . 5 201 . 113 . . Shots 14 | . . . 1 . . . 1 5 . 7 . . Rammed 4 | . . 1 1 1 . . . . . 1 . . Targets Rammed 5 | . . 1 1 1 . . . 1 . 1 . . Kicked 1 | . . . . . . . . 1 . . . . Crushed . | . . . . . . . . . . . . . Highest Temperature 512 | . 38 23 90 54 . . 212 370 . 240 . 512 Average Temperature 77 | . 17 15 39 14 . . 99 76 . 58 . 147 Received Heat Transfer 2845 | . 36 27 63 420 42 . 513 851 . 646 . 247 Effects 4 | . . . . . . . . 3 . . . 1 Shutdowns 1 | . . . . . . . . 1 . . . . Energy Bleed 3 | . . . . . . . . 2 . . . 1 Siege Activations . | . . . . . . . . . . . . . Martial Activations . | . . . . . . . . . . . . . Shielding Activations . | . . . . . . . . . . . . . Robots Disrupted 1 | . . . . . . . . . . 1 . . Combat Hostiles 1 | . . . . . . . . . . 1 . . Robots Corrupted 32 | . . . . . . . . 13 . 15 4 . Combat Hostiles 22 | . . . . . . . . 7 . 11 4 . Parts Fried 48 | . . . . . . . . 25 1 18 4 . Impact Corruptions 74 | . . . . . . . . 39 5 30 . . Robots Melted 1 | . . . . . . . . 1 . . . . Combat Hostiles 1 | . . . . . . . . 1 . . . . Parts Melted 14 | . . 1 1 3 1 . 1 7 . . . . Heat Transferred 8232 | . 200 125 531 2911 50 . 750 2577 . . 200 888 Parts Sabotaged . | . . . . . . . . . . . . . Parts Stolen . | . . . . . . . . . . . . . Parts Stripped . | . . . . . . . . . . . . . Power Chain Reactions 5 | . . . 2 . . . . 1 . . 2 . Alert | -11 -10 -9 -8 -7 -7 -7 -6 -6 -5 -5 -5 -4 ------- Run | Yrd Mat Mat Mat Fac Low Dat Pro Fac Fac Ext Cet Fac Maximum Alert Level 2 | . . . . 1 . . . 2 1 1 . 1 Low Security (%) 56 | 100 100 100 100 68 . . . . 89 97 100 79 Level 1 18 | . . . . 31 . . . 30 10 2 . 20 Level 2 25 | . . . . . . . . 69 . . . . Level 3 . | . . . . . . . . . . . . . Level 4 . | . . . . . . . . . . . . . Level 5 . | . . . . . . . . . . . . . High Security . | . . . . . . . . . . . . . Max Security . | . . . . . . . . . . . . . Peak Influence 625 | . 70 30 116 291 . . . 625 200 212 164 243 Initial 450 | . . 16 . 40 . . . 450 200 63 83 59 Average 214 | . 20 6 16 107 . . . 448 169 80 71 123 Influence Increases 4833 | . 132 41 176 619 50 . 210 2016 40 776 268 505 Destroy 0b10 Robot/C 2620 | . 100 20 140 420 40 . 160 880 . 500 160 200 Destroy 0b10 Robot/NC 205 | . 5 5 . 30 . . 10 90 5 35 10 15 Destroy Leader 470 | . 20 12 20 80 10 . 40 216 . 32 . 40 Allied During Kill 221 | . . . . . . . . . . 55 60 106 Successful Hack 58 | . 7 4 . 7 . . . . 18 18 4 . Disable Machine 324 | . . . 9 18 . . . 207 9 27 . 54 Destroy Structure 350 | . . . 7 4 . . . 113 8 94 34 90 Advance Influence 450 | . . . . . . . . 450 . . . . Lose Combat Pursuer 135 | . . . . 60 . . . 60 . 15 . . Influence Decreases 4719 | . 87 86 70 532 243 . 210 1540 366 754 317 514 Entered New Map 698 | . . 29 . 66 87 . . . 276 87 89 64 Time Decay 3281 | . 87 57 70 446 156 . 170 1300 90 527 208 170 Lost Part 540 | . . . . 20 . . 40 240 . 100 . 140 Lost Ally 200 | . . . . . . . . . . 40 20 140 Squads Dispatched 27 | . 1 . 1 5 . . . 13 1 1 . 5 Investigation 4 | . 1 . . 1 . . . 2 . . . . Extermination 6 | . . . . 1 . . . 4 . . . 1 Reinforcement 14 | . . . 1 3 . . . 7 1 1 . 1 Assault . | . . . . . . . . . . . . . Garrison 3 | . . . . . . . . . . . . 3 Intercept . | . . . . . . . . . . . . . Searches Triggered . | . . . . . . . . . . . . . Data Miner Redirects 1 | . . . . . . . . 1 . . . . Construction Impeded 5 | . . . 1 1 . . . 3 . . . . Haulers Reinforced 3 | . . . . 1 . . . 2 . . . . Active Scanning Responses . | . . . . . . . . . . . . . Cargo Convoy Interrupts . | . . . . . . . . . . . . . Stealth | -11 -10 -9 -8 -7 -7 -7 -6 -6 -5 -5 -5 -4 --------- Run | Yrd Mat Mat Mat Fac Low Dat Pro Fac Fac Ext Cet Fac Distress Signals 11 | . . . . 2 . . 1 . . 3 2 3 Communications Jammed . | . . . . . . . . . . . . . Distress Signals . | . . . . . . . . . . . . . Times Spotted 176 | . 7 4 7 30 1 . 12 56 1 33 8 17 Peak Tracking Total 11 | . 3 2 4 6 1 . 4 6 1 4 5 11 Tactical Retreats 7 | . . . . 2 . . . 4 . 1 . . Traps | -11 -10 -9 -8 -7 -7 -7 -6 -6 -5 -5 -5 -4 ------- Run | Yrd Mat Mat Mat Fac Low Dat Pro Fac Fac Ext Cet Fac Traps Triggered 10 | . 1 . . . . . . 9 . . . . Indirectly . | . . . . . . . . . . . . . Trap Hack Attempts . | . . . . . . . . . . . . . Triggered . | . . . . . . . . . . . . . Disarmed . | . . . . . . . . . . . . . Reprogrammed . | . . . . . . . . . . . . . Reused . | . . . . . . . . . . . . . Traps Extracted . | . . . . . . . . . . . . . Installed . | . . . . . . . . . . . . . Triggered . | . . . . . . . . . . . . . Machines | -11 -10 -9 -8 -7 -7 -7 -6 -6 -5 -5 -5 -4 ---------- Run | Yrd Mat Mat Mat Fac Low Dat Pro Fac Fac Ext Cet Fac Machines Disabled 38 | . . . 1 2 . . . 23 1 5 . 6 Max in Single Turn 15 | . . . 1 1 . . . 15 1 2 . 3 Energy Cycler 1 | . . . . . . . . . . 1 . . Machines Repaired . | . . . . . . . . . . . . . Machines Dismantled 3 | . . . . . . . . . 1 2 . . Machines Sabotaged . | . . . . . . . . . . . . . Overloaded Fab Kills . | . . . . . . . . . . . . . Hacking | -11 -10 -9 -8 -7 -7 -7 -6 -6 -5 -5 -5 -4 --------- Run | Yrd Mat Mat Mat Fac Low Dat Pro Fac Fac Ext Cet Fac Machines Accessed 27 | . 2 2 1 3 . 4 . 8 1 4 2 . Terminals 20 | . 2 2 1 1 . . . 7 1 4 2 . Fabricators 1 | . . . . 1 . . . . . . . . Repair Stations . | . . . . . . . . . . . . . Recycling Units . | . . . . . . . . . . . . . Scanalyzers 2 | . . . . 1 . . . 1 . . . . Garrison Access . | . . . . . . . . . . . . . Total Hacks 70 | . 3 4 1 4 . 29 . 13 1 8 7 . Successful 50 | . 1 2 1 3 . 29 . 1 1 7 5 . Failed 20 | . 2 2 . 1 . . . 12 . 1 2 . Catastrophic 3 | . . . . . . . . 3 . . . . Database Lockouts . | . . . . . . . . . . . . . Manual 7 | . 2 . . 1 . . . 2 1 . 1 . Terminals 36 | . 3 4 1 1 . . . 11 1 8 7 . Fabricators 1 | . . . . 1 . . . . . . . . Repair Stations . | . . . . . . . . . . . . . Recycling Units . | . . . . . . . . . . . . . Scanalyzers 4 | . . . . 2 . . . 2 . . . . Garrison Access . | . . . . . . . . . . . . . Terminal Hacks 48 | . 1 2 1 1 . 29 . 1 1 7 5 . Record 15 | . . . . . . 11 . . . . 4 . Part Schematic 9 | . . . . . . 9 . . . . . . Robot Schematic 6 | . . . . . . 6 . . . . . . Prototype ID Bank 4 | . . . . . . 3 . . . 1 . . Open Door 1 | . . . . . . . . . . . 1 . Branch Access Points 4 | . 1 1 . 1 . . . . 1 . . . Locate Traps 2 | . . . . . . . . . . 2 . . Registered Components 1 | . . . . . . . . 1 . . . . Registered Prototypes 1 | . . . . . . . . . . 1 . . Zone Layout 5 | . . 1 1 . . . . . . 3 . . Fabricator Hacks 1 | . . . . 1 . . . . . . . . Network Status 1 | . . . . 1 . . . . . . . . Repair Station Hacks . | . . . . . . . . . . . . . Recycling Unit Hacks . | . . . . . . . . . . . . . Scanalyzer 1 | . . . . 1 . . . . . . . . Retrieve Study 1 | . . . . 1 . . . . . . . . Garrison Access Hacks . | . . . . . . . . . . . . . Unauthorized Hacks . | . . . . . . . . . . . . . Terminals . | . . . . . . . . . . . . . Fabricators . | . . . . . . . . . . . . . Repair Stations . | . . . . . . . . . . . . . Recycling Units . | . . . . . . . . . . . . . Scanalyzers . | . . . . . . . . . . . . . Garrison Access . | . . . . . . . . . . . . . Data Cores Recovered . | . . . . . . . . . . . . . Used . | . . . . . . . . . . . . . Hacking Detections 15 | . 2 1 1 2 . . . 7 . 2 . . Full Trace Events 2 | . . . . . . . . 2 . . . . Feedback Events 1 | . . . . . . . . 1 . . . . Corruption 1 | . . . . . . . . 1 . . . . Feedback Blocked . | . . . . . . . . . . . . . Robot Schematics Acquired 6 | . . . . . . 6 . . . . . . Robots Built . | . . . . . . . . . . . . . Authchips . | . . . . . . . . . . . . . Time . | . . . . . . . . . . . . . Total Robot Build Rating . | . . . . . . . . . . . . . Part Schematics Acquired 9 | . . . . . . 9 . . . . . . Parts Built . | . . . . . . . . . . . . . Authchips . | . . . . . . . . . . . . . Time . | . . . . . . . . . . . . . Total Part Build Rating . | . . . . . . . . . . . . . Part Studies Acquired 1 | . . . . 1 . . . . . . . . Parts Repaired . | . . . . . . . . . . . . . Time . | . . . . . . . . . . . . . Parts Recycled . | . . . . . . . . . . . . . Recycled Matter . | . . . . . . . . . . . . . Retrieved Matter . | . . . . . . . . . . . . . Retrieved Components . | . . . . . . . . . . . . . Parts Scanalyzed . | . . . . . . . . . . . . . Part Schematics Acquired . | . . . . . . . . . . . . . Parts Damaged . | . . . . . . . . . . . . . Bothacking | -11 -10 -9 -8 -7 -7 -7 -6 -6 -5 -5 -5 -4 ------------ Run | Yrd Mat Mat Mat Fac Low Dat Pro Fac Fac Ext Cet Fac Used RIF Installer . | . . . . . . . . . . . . . Robots Hacked . | . . . . . . . . . . . . . Non-combat . | . . . . . . . . . . . . . Combat . | . . . . . . . . . . . . . Robot Hacks Applied . | . . . . . . . . . . . . . Relay Couplers Released . | . . . . . . . . . . . . . Fabnet Peak Effective % . | . . . . . . . . . . . . . Robots Rewired . | . . . . . . . . . . . . . Allies Hacked . | . . . . . . . . . . . . . Hacks Repelled . | . . . . . . . . . . . . . Allies | -11 -10 -9 -8 -7 -7 -7 -6 -6 -5 -5 -5 -4 -------- Run | Yrd Mat Mat Mat Fac Low Dat Pro Fac Fac Ext Cet Fac Total Allies 15 | . . . . . . . . . . 10 5 . Largest Group 9 | . . . . . . . . . . 7 9 8 Highest-Rated Group 729 | . . . . . . . . . . 343 729 710 Highest-Rated Ally 159 | . . . . . . . . . . 159 152 152 Total Orders . | . . . . . . . . . . . . . Ally Attacks 149 | . . . . . . . . . . 49 19 81 Total Damage 4082 | . . . . . . . . . . 1225 315 2542 Kills 17 | . . . . . . . . . . 10 2 5 Allies Corrupted . | . . . . . . . . . . . . . Allies Melted 2 | . . . . . . . . . . . . 2 Intel | -11 -10 -9 -8 -7 -7 -7 -6 -6 -5 -5 -5 -4 ------- Run | Yrd Mat Mat Mat Fac Low Dat Pro Fac Fac Ext Cet Fac Active Infowar (turns) 7936 | . 328 286 405 1206 1018 156 995 2608 190 419 . 325 Optics 325 | . . . . . . . . . . . . 325 Terrain 1769 | . . . . . . . . 1160 190 419 . . Seismic 5992 | . 328 286 405 1206 1018 156 995 1598 . . . . Robot Analysis Total . | . . . . . . . . . . . . . Derelict Logs Recovered 2 | . . . . . . . 2 . . . . . Drone Launches . | . . . . . . . . . . . . . Drone Recoveries . | . . . . . . . . . . . . . Exploration | -11 -10 -9 -8 -7 -7 -7 -6 -6 -5 -5 -5 -4 ------------- Run | Yrd Mat Mat Mat Fac Low Dat Pro Fac Fac Ext Cet Fac Turns Passed 9256 | 72 344 286 405 1206 1018 156 995 2608 190 1107 525 344 Spaces Moved 4464 | 39 190 160 203 445 570 98 475 1161 87 573 303 160 Core 3 | 3 . . . . . . . . . . . . Treads 2506 | 36 190 160 203 445 570 98 141 . . 320 303 40 Legs 1955 | . . . . . . . 334 1161 87 253 . 120 Wheels . | . . . . . . . . . . . . . Hover . | . . . . . . . . . . . . . Flight . | . . . . . . . . . . . . . Fastest Speed 50 | 50 160 160 160 160 160 160 160 108 105 105 162 120 Average Speed 172 | 154 160 160 163 212 173 160 188 177 161 143 162 149 Slowest Speed 330 | 160 160 160 240 240 200 160 200 188 185 330 162 186 Overloaded Moves . | . . . . . . . . . . . . . Propulsion Burnouts . | . . . . . . . . . . . . . Robots Hopped . | . . . . . . . . . . . . . Potential Cave-ins . | . . . . . . . . . . . . . Cave-ins Triggered . | . . . . . . . . . . . . . Exploration Rate (%) 40 | 4 50 22 19 14 64 69 69 39 3 70 89 10 Regions Visited 12 Branch Regions 5 Pre-discovered Areas 2 | . . . . . . 1 1 . . . . . Known Exits Taken 3 | . . . . 1 . . . 1 1 . . . Unknown Exits Taken 9 | 1 1 1 1 . 1 1 1 . . 1 1 . Scrap Searched 3 | . . . . . 1 . 2 . . . . . Spaces Dug 4 | . . . . . . . . . 4 . . . Terrain Destroyed 278 | . . . 5 . . . 38 108 4 70 28 25 Melee 4 | . . . . . . . . . 4 . . . Projectile 7 | . . . . . . . . 7 . . . . AOE 267 | . . . 5 . . . 38 101 . 70 28 25 Terrain Rammed . | . . . . . . . . . . . . . Walls Destroyed . | . . . . . . . . . . . . . Machines Disabled . | . . . . . . . . . . . . . Actions | -11 -10 -9 -8 -7 -7 -7 -6 -6 -5 -5 -5 -4 --------- Run | Yrd Mat Mat Mat Fac Low Dat Pro Fac Fac Ext Cet Fac Total 5294 | 48 205 175 246 571 592 97 522 1453 110 740 327 208 Wait 166 | . 1 . 1 24 14 . 3 54 . 57 10 2 Move 4452 | 38 189 159 202 444 569 97 474 1160 86 572 302 160 Hop . | . . . . . . . . . . . . . Pick Up 78 | 4 . 4 15 11 2 . 6 18 2 11 3 2 Fast Attach 52 | 6 1 2 1 4 . . 1 18 1 14 . 4 Attach 40 | . . . 1 5 2 . 7 15 2 2 . 6 Detach 2 | . . . . . . . 1 1 . . . . Swap 45 | . . 2 3 5 . . . 14 2 10 3 6 Drop 42 | . . . 6 12 1 . 1 5 . 12 4 1 Fire 279 | . 14 7 16 65 4 . 29 100 . 12 5 27 Melee 102 | . . . . . . . . 57 8 37 . . Ram . | . . . . . . . . . . . . . Kick 1 | . . . . . . . . 1 . . . . Crush 4 | . . 1 1 1 . . . . . 1 . . Escape Stasis 10 | . . . . . . . . 10 . . . . Rewire . | . . . . . . . . . . . . . Trap . | . . . . . . . . . . . . . Miscellaneous 21 | . . . . . . . . . 9 12 . . Route ------- -11/Scrapyard -10/Materials (discovered 2 exits: *Mat / *Min) -9/Materials (discovered 3 exits: *Mat / Min / Sto) -8/Materials -7/Factory (discovered 2 exits: *Low x2) -7/Lower Caves -7/Data Miner -6/Proximity Caves -6/Factory (discovered 2 exits: *Fac x2) -5/Factory (discovered 4 exits: Upp x2 / *Ext x2) -5/Extension (discovered 2 exits: [*Fac] / *Cet) -5/Cetus (discovered 3 exits: [*Fac x2] / [*Arc]) -4/Factory History --------- Turn | Location | Event 39 | -11/Scrapyard | Discovered new exit (range 16) 73 | -11/Scrapyard | Entered Materials 171 | -10/Materials | Identified exit to Mines 300 | -10/Materials | Build established: Mutant 407 | -10/Materials | Discovered new exit (range 4) 417 | -10/Materials | Entered another Materials area 417 | -9/Materials | Evolved 2 slots: Propulsion x1, Utility x1 578 | -9/Materials | Identified exit to Mines 578 | -9/Materials | Identified exit to Storage 681 | -9/Materials | Discovered new exit (range 14) 703 | -9/Materials | Entered another Materials area 703 | -8/Materials | Evolved 2 slots: Propulsion x1, Utility x1 1061 | -8/Materials | Discovered new exit (range 9) 1108 | -8/Materials | Entered Factory 1108 | -7/Factory | Evolved 2 slots: Utility x2 2222 | -7/Factory | Discovered new exit (range 9) 2293 | -7/Factory | Identified exit to Lower Caves 2314 | -7/Factory | Entered Lower Caves 2701 | -7/Lower Caves | Attracted the attention of an 0b10 checkpoint 3032 | -7/Lower Caves | A Derelict revealed a hidden shortcut to meet someone special 3332 | -7/Lower Caves | Entered Data Miner 3332 | -7/Data Miner | Discovered new exit (range 6) 3363 | -7/Data Miner | Met Data Miner 3395 | -7/Data Miner | Learned location of Section 7 (-3) 3395 | -7/Data Miner | Acquired the access code to Warlord's prototype stash 3422 | -7/Data Miner | Received God Mode back door access code from Data Miner 3488 | -7/Data Miner | Entered Proximity Caves 3568 | -6/Proximity Caves | Lost 3 parts (1n1u1w) 3797 | -6/Proximity Caves | Spotted B-75 Beast 3808 | -6/Proximity Caves | Spotter reported a threat 3836 | -6/Proximity Caves | Spotter reported a threat 3841 | -6/Proximity Caves | Destroyed B-75 Beast 3866 | -6/Proximity Caves | Lost 4 parts (3n1w) 3909 | -6/Proximity Caves | Spotter reported a threat 4135 | -6/Proximity Caves | Build established: Scavenger-Mutant 4309 | -6/Proximity Caves | Discovered new exit (range 15) 4483 | -6/Proximity Caves | Entered Factory 4483 | -6/Factory | Evolved 2 slots: Propulsion x1, Utility x1 5154 | -6/Factory | Spotted B-75 Beast 5313 | -6/Factory | Incoming investigation squad redirected 6042 | -6/Factory | Discovered new exit (range 12) 6225 | -6/Factory | Lost 13 parts (1p4n7u1w) 6243 | -6/Factory | Identified exit to Factory 6298 | -6/Factory | Core integrity fell below 50% 6430 | -6/Factory | Build established: Mutant 6787 | -6/Factory | System corruption reached 10% 7019 | -6/Factory | Discovered exit to Factory (range 15) 7030 | -6/Factory | Allied Derelicts emerged from ambush trap array 7049 | -6/Factory | Build established: Hacker-Mutant 7091 | -6/Factory | Entered another Factory area 7091 | -5/Factory | Evolved 2 slots: Propulsion x2 7092 | -5/Factory | Identified exit to Upper Caves 7189 | -5/Factory | Identified exit to Extension 7281 | -5/Factory | Entered Extension 7318 | -5/Extension | Disrupted transfer network 7335 | -5/Extension | Rescued a captive Derelict 7385 | -5/Extension | Rescued a captive Derelict 7637 | -5/Extension | Rescued a captive Derelict 7666 | -5/Extension | Spotted B-75 Beast 7678 | -5/Extension | Spotted B-75 Beast 7714 | -5/Extension | Destroyed B-75 Beast 7721 | -5/Extension | Destroyed B-75 Beast 7744 | -5/Extension | Lost 9 parts (6n3u) 7818 | -5/Extension | Rescued a captive Derelict 7820 | -5/Extension | Rescued a captive Derelict 7874 | -5/Extension | Rescued A7 7978 | -5/Extension | Rescued a captive Derelict 8151 | -5/Extension | Rescued a captive Derelict 8184 | -5/Extension | Build established: Scavenger-Mutant 8264 | -5/Extension | Rescued a captive Derelict 8265 | -5/Extension | Rescued a captive Derelict 8302 | -5/Extension | Energy Cycler disabled 8360 | -5/Extension | Discovered new exit (range 10) 8361 | -5/Extension | Discovered new exit (range 6) 8388 | -5/Extension | Entered Cetus 8388 | -5/Cetus | Accompanied by 5 allies (A7) 8393 | -5/Cetus | Acquired a Cetus Manufacturing Module code from A7 8409 | -5/Cetus | Spotted Cetus Guard 8410 | -5/Cetus | Spotted Cetus Guard 8413 | -5/Cetus | Spotted Cetus Guard 8413 | -5/Cetus | Spotted Cetus Guard 8417 | -5/Cetus | Destroyed Cetus Guard 8421 | -5/Cetus | Destroyed Cetus Guard 8421 | -5/Cetus | Destroyed Cetus Guard 8422 | -5/Cetus | Destroyed Cetus Guard 8531 | -5/Cetus | Started Cetus Manufacturing Module 8547 | -5/Cetus | Escorted A7 to Cetus Mainframe 8556 | -5/Cetus | Manufactured an Enhanced Grunt 8581 | -5/Cetus | Manufactured an Enhanced Grunt 8606 | -5/Cetus | Manufactured an Enhanced Grunt 8631 | -5/Cetus | Manufactured an Enhanced Grunt 8655 | -5/Cetus | Discovered new exit (range 16) 8656 | -5/Cetus | Manufactured an Enhanced Grunt 8800 | -5/Cetus | Discovered new exit (range 16) 8853 | -5/Cetus | Spotted Cetus Guard 8853 | -5/Cetus | Spotted Cetus Guard 8856 | -5/Cetus | Spotted Cetus Guard 8857 | -5/Cetus | Allies destroyed Cetus Guard 8857 | -5/Cetus | Spotted Cetus Guard 8859 | -5/Cetus | Destroyed Cetus Guard 8859 | -5/Cetus | Destroyed Cetus Guard 8861 | -5/Cetus | Allies destroyed Cetus Guard 8870 | -5/Cetus | Discovered new exit (range 15) 8879 | -5/Cetus | Met Revision 17 8913 | -5/Cetus | Entered Factory 8913 | -4/Factory | Accompanied by 8 allies (A7) 8913 | -4/Factory | Evolved 2 slots: Power x1, Utility x1 8918 | -4/Factory | Received a hacking code to weaken MAIN.C 8958 | -4/Factory | Garrison activated, responded to threat 9200 | -4/Factory | Spotted B-86 Titan 9250 | -4/Factory | Lost 5 allies 9257 | -4/Factory | Self-destructed Last Messages --------------- 09241_ Slug penetrates Wall. 09243_ The unstable cave ceiling collapses. 09245_ Flexi-carbon Leg destroyed. 09245_ Knocked back. 09245_ Penetrated by Slug. 09245_ Thunder Leg destroyed. 09245_ Slug penetrates Wall. 09246_ Destroyed Hvy. Reflective Plating. 09247_ The unstable cave ceiling collapses. 09248_ Lrn. Missile Launcher destroyed. 09248_ Hvy. Beamcaster destroyed. 09250_ Slug penetrates B-86 Titan. 09252_ System corrupted: Heat flow error (+298). 09252_ Imp. Medium Armor Plating destroyed. 09252_ Slug penetrates B-86 Titan. 09252_ B-86 Titan suffers critical hit (Blast). 09252_ Destroyed Dynamic Insulation System. 09254_ Penetrated by Slug. 09255_ W-44 Eye distress signal alerts nearby ally. 09255_ Lyr. Medium Armor Plating destroyed. Map ----- +----------------------------------------------------+ | ## # """ """???? #???????????????????? | | %## # ???? #???????????????????? | | ## # """ """???" #???????????????????? | | ## # """ "????"" #???????????????????? | | ## # """ "????"" +???????????????????? | | ## + ??????? #???????????????????? | | ## # ??????? #???????????????????? | | ## + ??????? #???????????????????? | | ###########+#########?# w #???????????????????? | | #??????? ### #######?#???????????? | | #???????"" """""" ? ????????????? | | #??????""" """""" ? ???????????? | | ##???""""" """""" %# ???????????? | | "## """""" """""" % # " """ """ Y"??#?????? | | ### BB " """ """ """ #?????? | | # BB " """ """ ??????? | | #???############ !*] ??????? | | ! #????????????# ! ! " *]] ???? | | #????????????# % "" " *]] ???? | | #????????????# % %= ??? | | ############## % % ??? | | p % ??? | | ############;###+####;;## # # #?????? | | #????????## %p #????? #???????????? | | ####????????#; ##???????? #???????????? | | ????????????## g % @;#?????????????????????? | | ??????? + /g g ! %#?????????????????????? | | ????? ### """ """ ##?????????????????????? | | ?????? ?????# """ """ #??????????????????????? | | ?????????????# """ """ ;??????????????????????? | | ?????????????# #??????????????????????? | | ?????????????# """ """ #??????????????????????? | | ?????????????# """ """ #??????????????????????? | | ?????????????# """ """ +??????????????????????? | | ??????????????? #??????????????????????? | | ????????????????###########??????????????????????? | | ?????????????????????????????????????????????????? | | ?????????????????????????????????????????????????? | | ?????????????????????????????????????????????????? | | ?????????????????????????????????????????????????? | | ?????????????????????????????????????????????????? | | ?????????????????????????????????????????????????? | | ?????????????????????????????????????????????????? | | ?????????????????????????????????????????????????? | | ?????????????????????????????????????????????????? | | ?????????????????????????????????????????????????? | | ?????????????????????????????????????????????????? | | ?????????????????????????????????????????????????? | | ?????????????????????????????????????????????????? | | ?????????????????????????????????????????????????? | +----------------------------------------------------+ Best States ------------- Heat Dissipation 64 Energy Generation 45 Energy Capacity 565 Matter Stores 300 Matter Capacity 300 Sight Range 22 Terrain Scan Range 20 Terrain Scan Density 10 Power Amplification 20 Armor Coverage 675 Resistance: KI 20 Resistance: TH 35 Resistance: EX 20 Resistance: EM 20 Resistance: I 20 Resistance: S 20 Resistance: P 20 Propulsion Shielding 90 Utility Shielding 66 Evasion (%) 70 Core Analysis 6 Recoil Reduction 5 Offensive Hacking 24 Item Schematics ----------------- Combat Drone Bay | -7/Data Miner | Free Lgt. Regenerative Plating | -7/Data Miner | Free Cld. Aerolev Unit | -7/Data Miner | Free Exp. Power Shielding | -7/Data Miner | Free Force Rifle | -7/Data Miner | Free Hvy. Treads | -7/Data Miner | Free Mni. Drone Bay | -7/Data Miner | Free Lrn. Proton Cannon | -7/Data Miner | Free Lgt. Antimatter Reactor | -7/Data Miner | Free Robot Schematics ------------------ G-47 Trooper | -7/Data Miner | Free C-17 Slicer | -7/Data Miner | Free M-14 Sweeper | -7/Data Miner | Free S-27 Virus | -7/Data Miner | Free G-50 Soldier | -7/Data Miner | Free L-41 Fighter | -7/Data Miner | Free Fabricated ------------ Nothing Repaired ---------- Nothing Studied --------- Lgt. Treads | -7/Factory | Hacked Alien Tech Used ----------------- None Achievements -------------- It Was An Accident, I Swear Main Advantage Prison Break Project G-00 Revising The Future Challenges ------------ None Game ------ Seed WaveHeavyMesh Manual? 0 Play Time 01:28:14 Cumulative 76.1 hours Start 2026.07.13 @ 18:33:44 End 2026.07.15 @ 22:12:44 Sessions 9 Manual Loads 0 Difficulty Adventurer Special Mode None Game No. 67 Rogue 0 Adventurer 67 Explorer 0 Win Type - Total 2 Types 1/0/0/1/0/0/0/0/0/0 Lore% 34 Gallery% 45 Achievement% 39 Wizard Run 0 Options --------- Layout 0 ASCII 0 Keyboard 0 Movement Mouse Keybinds 0 Fullscreen 0 Font 16/SmallcapsGlow Map View 76x50 Zoom Use 0% Tactical HUD 1 Map Filters NONE Filters NONE Steam 1 RUN: 0c7ddf98-2284-44f1-805a-f7f157e49bd8